bitfinex/quotes_BTCUSD_20240701
["timestamp","ask_amount","ask_price","bid_price","bid_amount"]
[1719863176469,0.792125,63201.0,63200.0,0.01197784]
[1719863176725,1.109575,63201.0,63200.0,0.01497784]
[1719863177599,1.107575,63201.0,63200.0,0.00197784]
[1719863177802,1.108575,63201.0,63200.0,0.00597784]
[1719863178012,1.109575,63201.0,63200.0,0.01697784]
[1719863178252,0.793125,63201.0,63200.0,0.01687784]
[1719863178471,0.001,63201.0,63200.0,0.16821682]
[1719863178673,0.159225,63201.0,63200.0,0.10587784]
[1719863178882,0.159225,63201.0,63200.0,0.106]
[1719863179102,0.474675,63201.0,63200.0,0.102]
[1719863179315,0.474675,63201.0,63200.0,0.1]
[1719863179316,0.158225,63201.0,63200.0,0.1]
[1719863179539,0.2999,63214.0,63200.0,0.1]
[1719863179540,0.3,63219.0,63203.0,0.2]
[1719863179738,0.47591475,63212.0,63204.0,0.34180261]
[1719863179985,0.158198,63212.0,63204.0,0.54170261]
[1719863180182,0.616235,63224.0,63204.0,0.54170261]
[1719863180183,0.316388,63214.0,63205.0,0.158215]
[1719863180421,0.158202,63210.0,63206.0,0.26233898]
[1719863180631,0.01330835,63213.0,63206.0,0.26233898]
[1719863180833,0.1582,63211.0,63207.0,0.00316374]
[1719863181042,0.01330835,63212.0,63211.0,0.2]
[1719863181265,0.014,63219.0,63212.0,0.1999]
[1719863181470,0.014,63219.0,63216.0,0.158186]
[1719863181697,0.025,63219.0,63218.0,0.2]
[1719863181908,0.025,63219.0,63218.0,0.00316325]
[1719863182123,0.025,63219.0,63218.0,0.20316325]
[1719863182326,0.014,63219.0,63218.0,1.53475098]
[1719863182531,0.014,63219.0,63218.0,1.73901401]
[1719863182738,0.014,63219.0,63218.0,2.14447901]
[1719863183382,0.158131,63239.0,63232.0,0.358146]
[1719863183596,0.47591475,63233.0,63232.0,0.52048498]
[1719863183799,0.158133,63238.0,63233.0,0.1]
[1719863184255,0.158135,63237.0,63233.0,0.1]
[1719863185614,0.15813,63239.0,63234.0,0.00316251]
[1719863185813,0.15813,63239.0,63235.0,0.0031645]
[1719863186022,0.167388,63236.0,63235.0,0.0030645]
[1719863186754,0.799938,63236.0,63235.0,0.0030645]
[1719863187158,0.009251,63236.0,63235.0,0.0030645]
[1719863187360,0.009251,63236.0,63235.0,0.00316245]
[1719863187559,0.009251,63236.0,63234.0,0.00316249]
[1719863187969,0.009251,63236.0,63234.0,0.00516249]
[1719863188184,0.00518184,63235.0,63234.0,0.00516249]
[1719863188361,0.00518184,63235.0,63234.0,0.00316249]
[1719863188362,0.01578765,63235.0,63234.0,0.00316249]
[1719863189377,0.01578765,63235.0,63234.0,0.16550147]
[1719863189578,0.01578765,63235.0,63234.0,0.73676598]
[1719863189831,0.010251,63236.0,63235.0,0.15814]
[1719863190052,0.009251,63236.0,63235.0,0.32047898]
[1719863190443,0.009251,63236.0,63235.0,0.63675898]
[1719863191218,0.009251,63236.0,63235.0,0.71325898]
[1719863191435,0.009251,63236.0,63235.0,0.82425898]
[1719863191436,0.010251,63236.0,63235.0,0.82425898]
[1719863192037,0.010251,63236.0,63235.0,0.34983898]
[1719863192759,0.02622083,63236.0,63235.0,0.34983898]
[1719863192995,0.81690987,63236.0,63235.0,0.111]
[1719863193233,0.50163487,63236.0,63235.0,0.115]
[1719863193465,0.50163487,63236.0,63235.0,0.015]
[1719863193928,0.49238387,63236.0,63235.0,0.015]
[1719863194159,0.80865887,63236.0,63235.0,0.015]
[1719863194408,0.80865887,63236.0,63235.0,0.0149]
[1719863194857,0.49238387,63236.0,63235.0,0.0149]
[1719863195083,0.80865887,63236.0,63235.0,0.0149]
[1719863198281,0.80865887,63236.0,63235.0,0.0148]
[1719863198673,0.01797187,63236.0,63235.0,0.0148]
[1719863199307,0.002,63236.0,63235.0,0.0148]
[1719863199509,0.01797187,63236.0,63235.0,0.0148]
[1719863199754,0.002,63236.0,63235.0,0.0148]
[1719863200209,0.476412,63236.0,63235.0,0.0148]
[1719863200452,0.80865887,63236.0,63235.0,0.0148]
[1719863200883,0.80875887,63236.0,63235.0,0.0148]
[1719863201998,0.80875887,63236.0,63235.0,0.0149]
[1719863202506,0.58441338,63236.0,63235.0,0.015]
[1719863202724,0.17620887,63236.0,63235.0,0.015]
[1719863203399,0.17630887,63236.0,63235.0,0.015]
[1719863204415,0.01817187,63236.0,63235.0,0.015]
[1719863207707,0.01817187,63236.0,63235.0,0.33547898]
[1719863207924,0.01817187,63236.0,63235.0,0.65175898]
[1719863208141,0.0022,63236.0,63235.0,0.65175898]
[1719863209004,0.10962856,63236.0,63235.0,0.65175898]
[1719863209234,0.10962834,63236.0,63235.0,0.65175898]
[1719863210692,0.10962834,63236.0,63235.0,0.015]
[1719863210898,0.11933642,63236.0,63235.0,0.015]
[1719863212096,0.27790086,63236.0,63235.0,0.015]
[1719863212699,0.27790086,63236.0,63235.0,0.015924]
[1719863213100,0.27874086,63236.0,63235.0,0.015924]
[1719863214058,0.59501586,63236.0,63235.0,0.015924]
[1719863215322,0.59494192,63236.0,63235.0,0.015924]
[1719863218488,0.59470618,63236.0,63235.0,0.015924]
[1719863218919,0.59471977,63236.0,63235.0,0.015924]
[1719863220427,0.71911075,63236.0,63235.0,0.015924]
[1719863220839,0.59471977,63236.0,63235.0,0.015924]
[1719863221059,0.50312479,63236.0,63235.0,0.015924]
[1719863221267,0.50317052,63236.0,63235.0,0.015924]
[1719863221547,1.07954535,63236.0,63235.0,0.015924]
[1719863221752,2.16539953,63236.0,63235.0,0.015924]
[1719863221960,2.52499953,63236.0,63235.0,0.015924]
[1719863222179,3.03143221,63236.0,63235.0,0.015924]
[1719863222651,3.03043221,63236.0,63235.0,0.005124]
[1719863222854,3.13043221,63236.0,63235.0,0.007124]
[1719863223282,3.47570721,63236.0,63235.0,0.003124]
[1719863223493,3.47570721,63236.0,63235.0,0.001124]
[1719863223494,3.62034923,63236.0,63235.0,0.001124]
[1719863223700,3.62234923,63236.0,63235.0,0.002124]
[1719863224119,3.62234923,63236.0,63235.0,0.001124]
[1719863224120,3.6224654,63236.0,63235.0,0.001124]
[1719863224530,3.6204654,63236.0,63235.0,0.001124]
[1719863224963,3.6344654,63236.0,63235.0,0.001124]
[1719863225374,3.34741238,63236.0,63235.0,0.001124]
[1719863225588,3.47710448,63236.0,63235.0,0.001124]
[1719863226214,3.67630281,63236.0,63235.0,0.002124]
[1719863226419,3.34272019,63236.0,63235.0,0.002124]
[1719863226628,3.33072019,63236.0,63235.0,0.001124]
[1719863227111,4.2742414,63236.0,63235.0,0.002124]
[1719863227328,0.158206,63209.0,63204.0,0.358116]
[1719863227546,0.09177375,63208.0,63205.0,0.16233898]
[1719863227790,0.10757995,63208.0,63205.0,0.16233898]
[1719863227991,0.09177375,63207.0,63205.0,0.16233898]
[1719863228400,0.0158062,63208.0,63206.0,0.1]
[1719863228601,0.158106,63209.0,63206.0,0.1]
[1719863228813,0.09180165,63208.0,63206.0,0.1]
[1719863229055,0.09280165,63208.0,63206.0,0.1]
[1719863229265,0.001,63208.0,63206.0,0.1]
[1719863230397,0.09180667,63207.0,63206.0,0.110917]
[1719863230653,0.002,63208.0,63206.0,0.110917]
[1719863230878,0.0021,63208.0,63206.0,0.110917]
[1719863231065,0.0021,63208.0,63207.0,1.51715291]
[1719863231066,0.0011,63208.0,63207.0,1.51715291]
[1719863231344,0.0011,63208.0,63207.0,1.97887291]
[1719863231345,0.0021,63208.0,63207.0,1.97887291]
[1719863231760,0.0021,63208.0,63207.0,2.00187291]
[1719863232142,0.0012,63208.0,63207.0,2.00187291]
[1719863232379,0.0022,63208.0,63207.0,2.10587291]
[1719863232595,0.0012,63208.0,63207.0,2.41829291]
[1719863232808,0.0012,63208.0,63207.0,2.78211291]
[1719863232809,0.0002,63208.0,63207.0,2.78211291]
[1719863233008,0.12557378,63236.0,63207.0,2.78211291]
[1719863233009,0.158143,63234.0,63229.0,0.2]
[1719863233216,0.158143,63234.0,63229.0,0.36131676]
[1719863233217,0.47591475,63230.0,63229.0,0.36131676]
[1719863234239,0.08262576,63230.0,63229.0,0.358154]
[1719863234452,0.09843053,63230.0,63229.0,0.358154]
[1719863235057,0.01580477,63230.0,63229.0,1.25311298]
[1719863235266,0.01580477,63230.0,63229.0,1.61871298]
[1719863235472,0.12557378,63236.0,63229.0,1.61871298]
[1719863235473,0.12557378,63236.0,63235.0,0.47442]
[1719863235676,0.12557378,63236.0,63235.0,0.89745898]
[1719863235882,0.12557378,63236.0,63235.0,1.21373898]
[1719863237782,0.12557378,63236.0,63235.0,1.73281898]
[1719863238206,0.12557378,63236.0,63235.0,1.89071898]
[1719863238411,0.12557378,63236.0,63235.0,1.90271898]
[1719863238412,0.12657378,63236.0,63235.0,1.90271898]
[1719863238628,0.12657378,63236.0,63235.0,1.89071898]
[1719863239003,0.12757378,63236.0,63235.0,1.90471898]
[1719863239633,0.12757378,63236.0,63235.0,1.70481898]
[1719863239786,0.12757378,63236.0,63235.0,1.90471898]
[1719863239787,0.00284,63236.0,63235.0,1.90471898]
[1719863240669,0.00084,63236.0,63235.0,1.89071898]
[1719863241110,0.00184,63236.0,63235.0,1.89071898]
[1719863241326,0.00184,63236.0,63235.0,1.89061898]
[1719863241528,0.00284,63236.0,63235.0,1.90461898]
[1719863243109,0.00284,63236.0,63235.0,1.90451898]
[1719863243376,0.00284,63236.0,63235.0,1.58823898]
[1719863243557,0.00284,63236.0,63235.0,1.12495898]
[1719863244763,0.00284,63236.0,63235.0,1.44123898]
[1719863246126,0.00284,63236.0,63235.0,1.75751898]
[1719863248628,0.00294,63236.0,63235.0,1.75751898]
[1719863249444,0.00294,63236.0,63235.0,1.75761898]
[1719863249795,0.00294,63236.0,63235.0,1.84231898]
[1719863250226,0.00294,63236.0,63235.0,2.15859898]
[1719863250432,0.00294,63236.0,63235.0,2.15869898]
[1719863251166,0.00304,63236.0,63235.0,2.15869898]
[1719863251521,0.00304,63236.0,63235.0,2.17449898]
[1719863251740,0.00304,63236.0,63235.0,2.20609898]
[1719863252945,0.00304,63236.0,63235.0,2.28769898]
[1719863254313,0.00304,63236.0,63235.0,1.97141898]
[1719863254957,0.00304,63236.0,63235.0,1.64441898]
[1719863255110,0.00304,63236.0,63235.0,1.80511898]
[1719863256103,0.00304,63236.0,63235.0,2.14439898]
[1719863258272,0.0777,63255.0,63254.0,0.474277]
[1719863258492,0.0633,63262.0,63257.0,0.31617]
[1719863258702,0.0633,63262.0,63261.0,0.1607]
[1719863259603,0.0633,63262.0,63261.0,0.318775]
[1719863260291,0.14681919,63262.0,63261.0,0.318775]
[1719863260660,0.14682157,63262.0,63261.0,0.318775]
[1719863260865,0.14682181,63262.0,63261.0,0.1607]
[1719863261276,0.14682181,63262.0,63261.0,0.1627]
[1719863261480,0.14682181,63262.0,63261.0,0.320675]
[1719863261896,0.0633,63262.0,63261.0,0.320675]
[1719863262104,0.14682304,63262.0,63261.0,0.320675]
[1719863262310,0.17120905,63262.0,63261.0,0.320575]
[1719863262510,0.17120905,63262.0,63261.0,0.318575]
[1719863262921,0.17120905,63262.0,63261.0,0.326575]
[1719863263143,0.18727814,63262.0,63261.0,0.326575]
[1719863263315,0.18727814,63262.0,63261.0,0.1725]
[1719863263316,0.19715929,63262.0,63261.0,0.1725]
[1719863263563,0.19715929,63262.0,63261.0,0.008]
[1719863263899,0.19715929,63262.0,63261.0,0.013]
[1719863264110,0.19715929,63262.0,63261.0,0.0129]
[1719863265250,0.19740174,63262.0,63261.0,0.0129]
[1719863265664,0.19740174,63262.0,63261.0,0.0128]
[1719863267097,1.34736374,63262.0,63261.0,0.0128]
[1719863267312,1.66350874,63262.0,63261.0,0.0128]
[1719863268008,2.61534932,63262.0,63261.0,0.0128]
[1719863268232,2.76670827,63262.0,63261.0,0.0078]
[1719863268443,2.64986108,63262.0,63261.0,0.0078]
[1719863268692,2.76711188,63262.0,63261.0,0.0078]
[1719863268911,2.76711188,63262.0,63241.0,0.258123]
[1719863268912,0.5005,63248.0,63241.0,0.1]
[1719863269150,0.158121,63243.0,63241.0,0.1]
[1719863269401,0.158121,63243.0,63238.0,0.158132]
[1719863269402,0.11849111,63242.0,63238.0,0.158132]
[1719863269651,0.11852584,63241.0,63239.0,0.16233898]
[1719863269901,0.10848106,63240.0,63239.0,0.16233898]
[1719863270338,0.0614,63239.0,63235.0,0.0318]
[1719863270559,0.474412,63236.0,63235.0,0.0002]
[1719863270792,0.59303912,63236.0,63235.0,0.0002]
[1719863271022,0.60910037,63236.0,63235.0,0.0002]
[1719863271523,0.61009419,63236.0,63235.0,0.0002]
[1719863271735,0.29391919,63236.0,63235.0,0.0002]
[1719863271976,0.61019419,63236.0,63235.0,0.0002]
[1719863272407,0.60012272,63236.0,63235.0,0.0002]
[1719863272646,0.60012272,63236.0,63235.0,0.0032]
[1719863272647,0.61019398,63236.0,63235.0,0.0032]
[1719863272857,0.60012272,63236.0,63235.0,0.0032]
[1719863273070,0.29492112,63236.0,63235.0,0.0092]
[1719863273358,0.29492112,63236.0,63235.0,0.0162]
[1719863273570,0.28384772,63236.0,63235.0,0.0072]
[1719863273787,0.28484772,63236.0,63235.0,0.0162]
[1719863274675,0.19978506,63236.0,63235.0,0.0162]
[1719863274891,0.2848413,63236.0,63235.0,0.0162]
[1719863275515,0.2848413,63236.0,63235.0,0.73546462]
[1719863275516,0.01726125,63236.0,63235.0,0.73546462]
[1719863275732,0.01726125,63236.0,63235.0,0.75612158]
[1719863275949,0.0012,63236.0,63235.0,0.75612158]
[1719863276479,0.0012,63236.0,63235.0,1.07240158]
[1719863276704,0.0012,63236.0,63235.0,1.60628602]
[1719863276957,0.00204,63236.0,63235.0,1.80618602]
[1719863277622,0.00104,63236.0,63235.0,1.79018602]
[1719863278283,0.00104,63236.0,63235.0,2.10646602]
[1719863278693,0.00104,63236.0,63235.0,2.12946602]
[1719863278944,0.0641,63257.0,63256.0,0.158087]
[1719863279193,0.54001475,63257.0,63256.0,0.158087]
[1719863279432,0.08007981,63257.0,63256.0,0.158087]
[1719863279673,0.01597981,63257.0,63256.0,0.474262]
[1719863279905,0.158073,63262.0,63257.0,0.158083]
[1719863280157,0.10798067,63261.0,63257.0,0.158083]
[1719863280375,0.158073,63262.0,63254.0,0.316184]
[1719863280376,0.27592035,63260.0,63254.0,0.316184]
[1719863280600,0.316149,63262.0,63251.0,0.2]
[1719863280601,0.3596,63257.0,63251.0,0.2]
[1719863280828,0.40960732,63259.0,63251.0,0.2]
[1719863280829,0.0623,63256.0,63252.0,0.10316163]
[1719863281091,0.08323017,63255.0,63253.0,0.158095]
[1719863281317,0.220388,63256.0,63252.0,0.1]
[1719863281577,0.08363267,63255.0,63252.0,0.258097]
[1719863281811,0.24172267,63255.0,63252.0,0.0999]
[1719863282043,0.15809,63255.0,63252.0,0.0999]
[1719863282265,0.24178951,63254.0,63252.0,0.0999]
[1719863282492,0.158092,63254.0,63252.0,0.0999]
[1719863282966,0.08369489,63253.0,63252.0,0.0999]
[1719863283208,0.158092,63254.0,63252.0,0.0999]
[1719863283703,0.158092,63254.0,63252.0,0.1008]
[1719863283935,0.220388,63256.0,63252.0,0.259897]
[1719863284184,0.24190776,63255.0,63252.0,0.1008]
[1719863284408,0.0623,63256.0,63252.0,0.1038]
[1719863284629,0.158082,63259.0,63255.0,0.158089]
[1719863284889,0.11800769,63258.0,63255.0,0.158089]
[1719863285114,0.10810722,63257.0,63255.0,0.16125051]
[1719863285340,0.15808,63259.0,63255.0,0.158089]
[1719863285563,0.02440558,63258.0,63255.0,0.158089]
[1719863285780,0.0244032,63257.0,63256.0,0.158087]
[1719863286015,0.221277,63260.0,63256.0,0.157987]
[1719863286290,0.18247192,63259.0,63255.0,0.158089]
[1719863286510,0.08445266,63257.0,63255.0,0.158089]
[1719863286773,0.15808,63259.0,63255.0,0.158089]
[1719863287202,0.15808,63259.0,63255.0,0.157989]
[1719863287638,0.221277,63260.0,63256.0,0.158086]
[1719863287814,0.02439122,63259.0,63257.0,0.158084]
[1719863288499,0.02439122,63259.0,63257.0,0.00316136]
[1719863288793,0.02439122,63259.0,63256.0,0.316173]
[1719863288794,0.158073,63262.0,63258.0,0.158082]
[1719863289039,0.0243889,63261.0,63258.0,0.158082]
[1719863289270,0.10081946,63261.0,63258.0,0.158082]
[1719863289493,0.456436,63264.0,63259.0,0.158079]
[1719863289494,0.10081946,63260.0,63259.0,0.158079]
[1719863290415,0.11072026,63260.0,63259.0,0.158079]
[1719863290653,0.10081946,63260.0,63259.0,0.6381003]
[1719863290894,0.00842,63265.0,63259.0,0.6381003]
[1719863290895,0.00842,63265.0,63264.0,0.474202]
[1719863291578,0.02185596,63265.0,63264.0,0.474202]
[1719863291869,0.00842,63265.0,63264.0,0.474202]
[1719863292327,0.00842,63265.0,63264.0,0.95267598]
[1719863292808,0.00842,63265.0,63264.0,0.95257598]
[1719863293322,0.00842,63265.0,63264.0,0.95247598]
[1719863294025,0.00842,63265.0,63264.0,0.95847598]
[1719863294545,0.00842,63265.0,63264.0,0.95647598]
[1719863294804,0.00842,63265.0,63264.0,0.96947598]
[1719863295254,0.00842,63265.0,63264.0,1.13017598]
[1719863295695,0.00842,63265.0,63264.0,1.12617598]
[1719863295912,0.00842,63265.0,63264.0,1.54231098]
[1719863296122,0.00842,63265.0,63264.0,1.55431098]
[1719863296327,0.00842,63265.0,63264.0,1.87044598]
[1719863296544,0.00842,63265.0,63264.0,2.15754598]
[1719863297378,0.00842,63265.0,63264.0,2.14544598]
[1719863297583,0.00842,63265.0,63264.0,2.13244598]
[1719863297792,0.00842,63265.0,63264.0,2.14544598]
[1719863297967,0.00842,63265.0,63264.0,2.15944598]
[1719863298321,0.00084,63268.0,63267.0,1.62254]
[1719863298531,0.00842,63274.0,63273.0,0.790225]
[1719863298770,0.00842,63274.0,63273.0,1.52935398]
[1719863299097,0.00842,63274.0,63273.0,1.93274398]
[1719863299313,0.00842,63274.0,63273.0,2.13264398]
[1719863299529,0.00842,63274.0,63273.0,2.20884398]
[1719863299907,0.00842,63274.0,63273.0,2.22284398]
[1719863300255,0.00842,63274.0,63273.0,1.73205398]
[1719863300456,0.00842,63274.0,63273.0,1.89275398]
[1719863300664,0.00842,63274.0,63273.0,1.90675398]
[1719863301307,0.00842,63274.0,63273.0,1.90665398]
[1719863301506,0.00842,63274.0,63273.0,1.76615398]
[1719863301884,0.00842,63274.0,63273.0,1.75215398]
[1719863302084,0.00842,63274.0,63273.0,1.75205398]
[1719863302311,0.00842,63274.0,63273.0,0.59488398]
[1719863302515,0.00842,63274.0,63273.0,0.27633898]
[1719863302665,0.00842,63274.0,63273.0,0.43438398]
[1719863302666,0.02214665,63274.0,63273.0,0.43438398]
[1719863302867,0.02214665,63274.0,63273.0,0.44838398]
[1719863303106,0.00842,63274.0,63273.0,0.44838398]
[1719863303318,0.00842,63274.0,63273.0,0.43438398]
[1719863303516,0.00842,63274.0,63273.0,0.44838398]
[1719863303984,0.00842,63274.0,63273.0,0.42038398]
[1719863304168,0.00842,63274.0,63273.0,0.44838398]
[1719863304595,0.00842,63274.0,63273.0,0.43438398]
[1719863304997,0.00842,63274.0,63273.0,0.44838398]
[1719863305226,0.00842,63274.0,63273.0,0.44848398]
[1719863305860,0.00842,63274.0,63273.0,0.44858398]
[1719863306682,0.00852,63274.0,63273.0,0.44858398]
[1719863307638,0.00862,63274.0,63273.0,0.44858398]
[1719863308971,0.00862,63274.0,63273.0,0.76467398]
[1719863309640,0.00862,63274.0,63273.0,1.08076398]
[1719863310651,0.00862,63274.0,63273.0,1.39777798]
[1719863315555,0.00862,63274.0,63273.0,1.48027798]
[1719863315682,0.00862,63274.0,63273.0,1.50327798]
[1719863316079,0.00862,63274.0,63273.0,2.01926798]
[1719863316285,0.00862,63274.0,63273.0,2.08156798]
[1719863319279,0.00084,63280.0,63279.0,1.62227]
[1719863319516,0.00084,63280.0,63279.0,2.06830898]
[1719863320346,0.00084,63280.0,63279.0,2.57130898]
[1719863320551,0.0759,63296.0,63295.0,0.98995]
[1719863320754,0.0759,63296.0,63295.0,1.31298898]
[1719863321166,0.063,63298.0,63297.0,0.473955]
[1719863321365,0.063,63298.0,63297.0,0.95226398]
[1719863321571,0.07670845,63298.0,63297.0,0.95226398]
[1719863321771,0.063,63298.0,63297.0,0.95226398]
[1719863322796,0.063,63298.0,63297.0,0.95426398]
[1719863323630,0.063,63298.0,63297.0,0.95726398]
[1719863324442,0.063,63298.0,63297.0,0.95716398]
[1719863325429,0.063,63298.0,63297.0,0.95706398]
[1719863326248,0.063,63298.0,63297.0,0.64109398]
[1719863326452,0.07679898,63298.0,63297.0,0.64109398]
[1719863326878,0.07679898,63298.0,63297.0,0.32512398]
[1719863329058,0.07679898,63298.0,63297.0,0.32502398]
[1719863330448,0.39276398,63298.0,63297.0,0.005]
[1719863330647,1.01047912,63298.0,63297.0,0.005]
[1719863330851,1.40234412,63298.0,63297.0,0.005]
[1719863331072,1.40234859,63298.0,63297.0,0.005]
[1719863331274,1.04274859,63298.0,63297.0,0.005]
[1719863331449,0.72678359,63298.0,63297.0,0.0049]
[1719863333389,1.08638359,63298.0,63297.0,0.0049]
[1719863333630,1.40234859,63298.0,63297.0,0.0049]
[1719863334253,1.39274355,63298.0,63297.0,0.0049]
[1719863334415,1.40243075,63298.0,63297.0,0.0049]
[1719863334735,1.3362978,63298.0,63297.0,0.0049]
[1719863334897,1.40331598,63298.0,63297.0,0.0049]
[1719863335561,2.24075636,63298.0,63297.0,0.0049]
[1719863335769,2.44304849,63298.0,63297.0,0.0049]
[1719863336080,2.41304849,63298.0,63297.0,0.0049]
[1719863336280,2.41304849,63298.0,63297.0,0.005]
[1719863336703,2.41304849,63298.0,63297.0,0.002]
[1719863336948,2.41304849,63298.0,63297.0,0.0001]
[1719863337152,2.41314849,63298.0,63297.0,0.0011]
[1719863337392,2.24656927,63298.0,63297.0,0.0022]
[1719863337566,2.41461331,63298.0,63297.0,0.0022]
[1719863338294,2.41461331,63298.0,63280.0,0.47591475]
[1719863338295,0.158025,63281.0,63280.0,0.47591475]
[1719863338501,0.55080594,63281.0,63280.0,0.47591475]
[1719863338702,0.55080594,63281.0,63278.0,0.2]
[1719863338703,0.15803,63279.0,63278.0,0.2]
[1719863338905,0.23476094,63279.0,63278.0,0.2]
[1719863339028,0.56462346,63279.0,63278.0,0.2]
[1719863339215,0.58903226,63279.0,63278.0,0.2]
[1719863339844,0.58903226,63279.0,63278.0,0.2]
[1719863340624,0.838101,63279.0,63278.0,0.214]
[1719863340824,1.7285883,63279.0,63278.0,0.014]
[1719863341383,2.0285883,63279.0,63278.0,0.014]
[1719863341592,2.22062754,63279.0,63278.0,0.014]
[1719863341989,2.22052754,63279.0,63278.0,0.014]
[1719863342199,0.790212,63274.0,63273.0,0.000924]
[1719863342408,0.86717898,63274.0,63273.0,0.000924]
[1719863342614,0.88083324,63274.0,63273.0,0.000924]
[1719863342817,0.90513849,63274.0,63273.0,0.000924]
[1719863343117,0.90525586,63274.0,63273.0,0.000924]
[1719863343316,0.88085061,63274.0,63273.0,0.000924]
[1719863343523,0.88085321,63274.0,63273.0,0.000924]
[1719863343720,0.56476821,63274.0,63273.0,0.000924]
[1719863344337,0.58917797,63274.0,63273.0,0.028924]
[1719863344523,0.90526297,63274.0,63273.0,0.028924]
[1719863344733,0.58917797,63274.0,63273.0,0.028924]
[1719863344984,0.58917745,63274.0,63273.0,0.028924]
[1719863345223,0.56476821,63274.0,63273.0,0.028924]
[1719863345425,0.09074121,63274.0,63273.0,0.028924]
[1719863345621,0.24878321,63274.0,63273.0,0.028924]
[1719863346023,0.09074121,63274.0,63273.0,0.028924]
[1719863346279,0.09024136,63274.0,63273.0,0.028924]
[1719863347160,0.09014136,63274.0,63273.0,0.028924]
[1719863347389,0.01345426,63274.0,63273.0,0.028924]
[1719863347599,0.01345426,63274.0,63273.0,0.19442375]
[1719863347813,0.01345426,63274.0,63273.0,1.14218798]
[1719863347983,0.22212,63283.0,63277.0,0.158034]
[1719863348206,0.02441154,63282.0,63279.0,0.1607]
[1719863348408,0.158023,63282.0,63279.0,0.1607]
[1719863348624,0.02440919,63281.0,63279.0,0.3607]
[1719863349013,0.22212,63283.0,63279.0,0.3607]
[1719863349212,0.10137128,63282.0,63279.0,0.3607]
[1719863349461,0.22212,63283.0,63279.0,0.3677]
[1719863349644,0.10137591,63282.0,63279.0,0.3607]
[1719863349884,0.0641,63283.0,63279.0,0.3607]
[1719863349885,0.0916361,63281.0,63279.0,0.3607]
[1719863350033,0.0641,63283.0,63279.0,0.3687]
[1719863350233,0.10143686,63282.0,63279.0,0.3677]
[1719863350585,0.0641,63283.0,63279.0,0.3657]
[1719863350694,0.0244106,63282.0,63279.0,0.3657]
[1719863350908,0.07689389,63281.0,63279.0,0.3657]
[1719863351102,0.10130179,63280.0,63279.0,0.3657]
[1719863351333,0.10130246,63280.0,63279.0,0.3657]
[1719863351532,0.22212,63283.0,63279.0,0.3657]
[1719863351741,0.10131485,63282.0,63279.0,0.3657]
[1719863351954,0.02441382,63281.0,63279.0,0.3657]
[1719863352177,0.158013,63286.0,63280.0,0.158025]
[1719863352391,0.10138884,63285.0,63280.0,0.157925]
[1719863352570,0.0916495,63284.0,63280.0,0.157925]
[1719863352778,0.0916495,63283.0,63280.0,0.157925]
[1719863352993,0.0244178,63282.0,63279.0,0.52573]
[1719863353195,0.1824428,63281.0,63279.0,0.2]
[1719863353399,0.68307981,63280.0,63279.0,0.01]
[1719863353841,0.158031,63279.0,63274.0,0.1]
[1719863354045,0.53870569,63280.0,63273.0,0.48220698]
[1719863354046,0.158041,63275.0,63273.0,0.001124]
[1719863354216,0.3596,63276.0,63273.0,0.001124]
[1719863354217,0.22505981,63274.0,63273.0,0.001124]
[1719863354458,1.26465211,63274.0,63273.0,0.001124]
[1719863354720,1.32525211,63274.0,63273.0,0.001124]
[1719863355143,1.64133711,63274.0,63273.0,0.001124]
[1719863355356,1.99661935,63274.0,63273.0,0.001124]
[1719863355753,2.02666969,63274.0,63273.0,0.001124]
[1719863355963,2.34275469,63274.0,63273.0,0.001124]
[1719863356081,2.34275469,63274.0,63273.0,0.015124]
[1719863356301,2.34275469,63274.0,63270.0,0.4662]
[1719863356302,1.79595,63271.0,63270.0,0.4662]
[1719863356487,2.49220879,63271.0,63270.0,0.4662]
[1719863356682,2.5758253,63271.0,63270.0,0.4662]
[1719863357102,2.4758253,63271.0,63270.0,0.4662]
[1719863357302,2.5758253,63271.0,63270.0,0.4662]
[1719863358222,2.5758253,63271.0,63270.0,0.3662]
[1719863358607,2.5798253,63271.0,63270.0,0.3672]
[1719863358808,2.5798253,63271.0,63270.0,0.3682]
[1719863358809,2.59128358,63271.0,63270.0,0.3682]
[1719863359153,2.59128358,63271.0,63270.0,0.002]
[1719863359523,2.62128358,63271.0,63270.0,0.002]
[1719863359733,2.62118358,63271.0,63270.0,0.002]
[1719863359896,2.62108358,63271.0,63270.0,0.002]
[1719863360345,2.72267028,63271.0,63270.0,0.002]
[1719863360535,2.62108358,63271.0,63270.0,0.002]
[1719863360736,2.32641777,63271.0,63270.0,0.002]
[1719863360992,2.1126446,63271.0,63270.0,0.002]
[1719863362225,2.10273761,63271.0,63270.0,0.002]
[1719863362431,2.42716813,63271.0,63270.0,0.002]
[1719863362640,2.48508853,63271.0,63270.0,0.002]
[1719863363337,2.48506446,63271.0,63270.0,0.002]
[1719863364573,2.96350344,63271.0,63270.0,0.002]
[1719863365313,2.44861965,63271.0,63270.0,0.002]
[1719863365526,2.61690183,63271.0,63270.0,0.002]
[1719863365673,2.61690183,63271.0,63270.0,0.0021]
[1719863365674,2.64690183,63271.0,63270.0,0.0021]
[1719863366563,2.61690183,63271.0,63270.0,0.0021]
[1719863366959,2.45456285,63271.0,63270.0,0.0021]
[1719863367181,2.32553394,63271.0,63270.0,0.0021]
[1719863367579,2.32553394,63271.0,63270.0,0.0022]
[1719863367580,2.32231204,63271.0,63270.0,0.0022]
[1719863368296,2.25516965,63271.0,63270.0,0.0022]
[1719863368522,2.32193131,63271.0,63270.0,0.0022]
[1719863370327,2.49429523,63271.0,63270.0,0.0022]
[1719863371155,2.4946501,63271.0,63270.0,0.0022]
[1719863371607,2.46678362,63271.0,63270.0,0.0022]
[1719863371838,2.49464504,63271.0,63270.0,0.0022]
[1719863372076,2.45774566,63271.0,63270.0,0.0022]
[1719863372300,2.49541772,63271.0,63270.0,0.0022]
[1719863374666,2.28922645,63271.0,63270.0,0.0022]
[1719863374867,2.49500706,63271.0,63270.0,0.0022]
[1719863375687,2.52500706,63271.0,63270.0,0.0022]